bitfinex/quotes_BTCUSD_20250903
["timestamp","ask_amount","ask_price","bid_price","bid_amount"]
[1756901871544,0.77679562,111730.0,111720.0,0.33671897]
[1756901872176,0.43679562,111730.0,111720.0,0.33671897]
[1756901872384,0.40988538,111730.0,111720.0,0.33671897]
[1756901872974,0.58888833,111730.0,111720.0,0.33671897]
[1756901873706,0.58888833,111730.0,111720.0,0.18615897]
[1756901873962,0.58888833,111730.0,111720.0,0.33667897]
[1756901874415,0.59806782,111730.0,111720.0,0.15766]
[1756901874624,0.59806782,111730.0,111720.0,0.33667897]
[1756901875225,0.59806782,111730.0,111720.0,0.18615897]
[1756901875466,0.59806782,111730.0,111720.0,0.33667897]
[1756901875673,0.73443999,111730.0,111720.0,0.33667897]
[1756901876587,0.18818244,111730.0,111720.0,0.00714]
[1756901876784,0.73443999,111730.0,111720.0,0.33667897]
[1756901877023,0.73443999,111730.0,111720.0,0.15766]
[1756901877227,0.73641999,111730.0,111720.0,0.15252]
[1756901879155,0.73641999,111730.0,111720.0,0.33454897]
[1756901879355,0.73641999,111730.0,111720.0,0.33667897]
[1756901879914,0.18818244,111730.0,111720.0,0.33667897]
[1756901880097,0.73443999,111730.0,111720.0,0.33667897]
[1756901880518,0.73641999,111730.0,111720.0,0.00501]
[1756901880730,0.73641999,111730.0,111720.0,0.33663897]
[1756901881606,0.73443999,111730.0,111720.0,0.33663897]
[1756901883546,0.7252605,111730.0,111720.0,0.33663897]
[1756901886658,0.7272405,111730.0,111720.0,0.33663897]
[1756901886872,0.7252605,111730.0,111720.0,0.33663897]
[1756901888239,0.7252605,111730.0,111720.0,0.00714]
[1756901888476,0.7272405,111730.0,111720.0,0.33663897]
[1756901888692,0.7272405,111730.0,111720.0,0.002]
[1756901888908,0.7272405,111730.0,111720.0,0.15248]
[1756901889723,0.18098295,111730.0,111720.0,0.33149897]
[1756901889959,0.17900295,111730.0,111720.0,0.33662897]
[1756901890163,0.7252605,111730.0,111720.0,0.33662897]
[1756901891009,0.17900295,111730.0,111720.0,0.33662897]
[1756901891218,0.7252605,111730.0,111720.0,0.33662897]
[1756901894633,0.7272405,111730.0,111720.0,0.002]
[1756901894844,0.7272405,111730.0,111720.0,0.33145897]
[1756901895372,0.7272405,111730.0,111720.0,0.33452897]
[1756901895597,0.7272405,111730.0,111720.0,0.33658897]
[1756901896010,0.7272405,111730.0,111720.0,0.15551]
[1756901896959,0.7272405,111730.0,111720.0,0.33452897]
[1756901897283,0.7272405,111730.0,111720.0,0.33658897]
[1756901899796,0.17900295,111730.0,111720.0,0.33658897]
[1756901900128,0.7272405,111730.0,111720.0,0.33658897]
[1756901900352,0.7272405,111730.0,111720.0,0.15244]
[1756901900546,0.7272405,111730.0,111720.0,0.15551]
[1756901900695,0.54625755,111730.0,111720.0,0.33658897]
[1756901900907,0.18790899,111740.0,111720.0,0.33658897]
[1756901901112,0.61982498,111740.0,111730.0,0.17900295]
[1756901901313,0.62180498,111740.0,111730.0,0.18413295]
[1756901901538,0.61982498,111740.0,111730.0,0.18413295]
[1756901902379,1.16608253,111740.0,111730.0,0.18413295]
[1756901902649,0.54625755,111740.0,111730.0,0.18413295]
[1756901902828,0.72522846,111750.0,111740.0,0.17898693]
[1756901903078,1.15912445,111750.0,111740.0,0.33455693]
[1756901904180,1.15912445,111750.0,111740.0,0.33555693]
[1756901905099,1.16795497,111750.0,111740.0,0.33555693]
[1756901905301,1.16795497,111750.0,111740.0,0.33655693]
[1756901905982,1.16597497,111750.0,111740.0,0.33655693]
[1756901906564,0.02690585,111760.0,111750.0,0.17897091]
[1756901906799,0.72521245,111760.0,111750.0,0.18633804]
[1756901906952,0.54625755,111760.0,111750.0,0.18410091]
[1756901907358,0.88625755,111760.0,111750.0,0.18410091]
[1756901907606,1.06521245,111760.0,111750.0,0.18410091]
[1756901908039,0.5189549,111760.0,111750.0,0.18410091]
[1756901908165,1.06521245,111760.0,111750.0,0.18410091]
[1756901908801,1.06521245,111760.0,111750.0,0.33454091]
[1756901910365,1.06521245,111760.0,111750.0,0.33554091]
[1756901910512,0.34,111760.0,111750.0,0.33554091]
[1756901910712,0.5189549,111760.0,111750.0,0.33554091]
[1756901910916,1.06719245,111760.0,111750.0,0.002]
[1756901911117,1.06719245,111760.0,111750.0,0.1524]
[1756901911356,1.06719245,111760.0,111750.0,0.002]
[1756901911564,1.06719245,111760.0,111750.0,0.1524]
[1756901912157,1.06719245,111760.0,111750.0,0.15547]
[1756901913212,1.06715245,111760.0,111750.0,0.15547]
[1756901913679,1.06715245,111760.0,111750.0,0.33444091]
[1756901913886,1.06715245,111760.0,111750.0,0.33650091]
[1756901914584,1.06715245,111760.0,111750.0,0.15753]
[1756901914757,1.06715245,111760.0,111750.0,0.15547]
[1756901916168,1.06715245,111760.0,111750.0,0.1524]
[1756901916838,1.64791456,111760.0,111750.0,0.002]
[1756901917071,1.74111055,111760.0,111750.0,0.1524]
[1756901917266,1.77019461,111760.0,111750.0,0.1524]
[1756901920173,1.77019461,111760.0,111750.0,0.002]
[1756901920479,1.77019461,111760.0,111750.0,0.15236]
[1756901920617,1.7971003,111760.0,111750.0,0.15236]
[1756901920958,1.7971003,111760.0,111750.0,0.002]
[1756901921160,1.7971003,111760.0,111750.0,0.15236]
[1756901923178,1.81803912,111760.0,111750.0,0.002]
[1756901924223,1.9474603,111760.0,111750.0,0.002]
[1756901924903,1.9474603,111760.0,111750.0,0.001]
[1756901925118,0.17897091,111750.0,111740.0,0.1232]
[1756901925349,0.88271307,111750.0,111740.0,0.1232]
[1756901926418,0.90962225,111750.0,111740.0,0.1232]
[1756901926766,0.91090225,111750.0,111740.0,0.1232]
[1756901927934,0.51898693,111740.0,111730.0,0.06884]
[1756901928069,1.15716047,111740.0,111730.0,0.22215]
[1756901928270,1.19166503,111740.0,111730.0,0.22418]
[1756901928810,1.21857454,111740.0,111730.0,0.22418]
[1756901929517,1.22055454,111740.0,111730.0,0.22518]
[1756901929716,1.22055454,111740.0,111730.0,0.07482]
[1756901929980,1.22055454,111740.0,111730.0,0.22518]
[1756901930186,1.22055454,111740.0,111730.0,0.22618]
[1756901931213,1.22055454,111740.0,111730.0,0.2212]
[1756901931788,1.22055454,111740.0,111730.0,0.22415]
[1756901932006,1.22055454,111740.0,111730.0,0.22618]
[1756901934287,1.22055454,111740.0,111730.0,0.22415]
[1756901934897,1.22055454,111740.0,111730.0,0.22618]
[1756901936688,1.22055454,111740.0,111730.0,0.22415]
[1756901937574,1.49369671,111740.0,111730.0,0.22618]
[1756901938024,1.49171671,111740.0,111730.0,0.15734]
[1756901940532,1.49369671,111740.0,111730.0,0.15734]
[1756901941307,1.49369671,111740.0,111730.0,0.15531]
[1756901941924,1.49369671,111740.0,111730.0,0.15734]
[1756901944623,1.49369671,111740.0,111730.0,0.15236]
[1756901944978,1.90339657,111740.0,111730.0,0.15236]
[1756901945563,1.93248063,111740.0,111730.0,0.002]
[1756901945771,1.93376063,111740.0,111730.0,0.15236]
[1756901946526,1.93376063,111740.0,111730.0,0.15136]
[1756901946741,1.93376063,111740.0,111730.0,0.001]
[1756901946918,0.51900295,111730.0,111720.0,0.15036]
[1756901947069,1.46482322,111730.0,111720.0,0.15036]
[1756901947263,1.46680322,111730.0,111720.0,0.15036]
[1756901947503,1.49371679,111730.0,111720.0,0.15036]
[1756901952440,0.67431707,111730.0,111720.0,0.15036]
[1756901952651,1.49371679,111730.0,111720.0,0.15036]
[1756901953516,1.49173679,111730.0,111720.0,0.15552]
[1756901955137,1.04753237,111730.0,111720.0,0.15552]
[1756901956040,1.04753237,111730.0,111720.0,0.33453897]
[1756901956235,1.04753237,111730.0,111720.0,0.15552]
[1756901956482,0.54591652,111730.0,111720.0,0.3367767]
[1756901956681,0.17900295,111730.0,111720.0,0.33453897]
[1756901956889,0.58870281,111730.0,111720.0,0.33453897]
[1756901957049,0.61559633,111740.0,111730.0,0.17900295]
[1756901957245,0.95559633,111740.0,111730.0,0.18416295]
[1756901957488,1.36529619,111740.0,111730.0,0.18416295]
[1756901957671,0.7766094,111740.0,111730.0,0.18416295]
[1756901957870,0.17898693,111740.0,111730.0,0.18416295]
[1756901958122,0.58868679,111740.0,111730.0,0.18416295]
[1756901958476,0.99838665,111740.0,111730.0,0.15548]
[1756901959422,0.99838665,111740.0,111730.0,0.33448295]
[1756901959625,0.17898693,111740.0,111730.0,0.33448295]
[1756901959832,0.99838665,111740.0,111730.0,0.33448295]
[1756901960062,0.99838665,111740.0,111730.0,0.15548]
[1756901960679,0.99838665,111740.0,111730.0,0.15648]
[1756901961500,0.99838665,111740.0,111730.0,0.15748]
[1756901963266,0.99838665,111740.0,111730.0,0.00716]
[1756901963471,0.99838665,111740.0,111730.0,0.33648295]
[1756901964372,0.02690584,111750.0,111740.0,0.17898693]
[1756901964602,0.41873467,111770.0,111760.0,0.1789549]
[1756901964817,0.41873467,111770.0,111760.0,0.33349183]
[1756901965046,0.40969986,111770.0,111760.0,0.3344349]
[1756901965276,0.74969986,111770.0,111760.0,0.3344349]
[1756901965553,0.40969986,111770.0,111760.0,0.3344349]
[1756901966014,0.75016573,111770.0,111760.0,0.3344349]
[1756901966967,0.75922502,111770.0,111760.0,0.3344349]
[1756901967170,0.93816391,111770.0,111760.0,0.3344349]
[1756901967442,0.94316391,111770.0,111760.0,0.3344349]
[1756901967690,0.75516573,111770.0,111760.0,0.3344349]
[1756901968256,0.75216573,111770.0,111760.0,0.3344349]
[1756901968466,0.34246587,111770.0,111760.0,0.3344349]
[1756901968698,0.00446587,111770.0,111760.0,0.3344349]
[1756901969461,0.00246587,111770.0,111760.0,0.3344349]
[1756901969918,0.00346587,111770.0,111760.0,0.3344349]
[1756901970137,0.00146587,111770.0,111760.0,0.1841149]
[1756901970380,0.00046587,111770.0,111760.0,0.3353949]
[1756901970799,0.00046587,111770.0,111760.0,0.3363949]
[1756901971000,0.00046587,111770.0,111760.0,0.3383949]
[1756901974657,0.00046587,111770.0,111760.0,0.1881149]
[1756901974878,0.58910462,111770.0,111760.0,0.3383549]
[1756901975139,0.59108462,111770.0,111760.0,0.1594]
[1756901975351,1.00078448,111770.0,111760.0,0.004]
[1756901975575,1.00078448,111770.0,111760.0,0.15424]
[1756901975753,0.59108462,111770.0,111760.0,0.15424]
[1756901975965,0.59108462,111770.0,111760.0,0.004]
[1756901976140,0.59108462,111770.0,111760.0,0.15424]
[1756901977747,0.59108462,111770.0,111760.0,0.004]
[1756901977915,1.34078448,111770.0,111760.0,0.004]
[1756901978114,1.34078448,111770.0,111760.0,0.15424]
[1756901978313,0.93108462,111770.0,111760.0,0.15424]
[1756901978496,1.34078448,111770.0,111760.0,0.15424]
[1756901979040,1.34078448,111770.0,111760.0,0.004]
[1756901979245,1.34078448,111770.0,111760.0,0.15424]
[1756901980637,0.52138476,111770.0,111760.0,0.15424]
[1756901980954,1.34078448,111770.0,111760.0,0.15424]
[1756901982067,0.93108462,111770.0,111760.0,0.15741]
[1756901982567,0.93108462,111770.0,111760.0,0.15424]
[1756901983780,1.34078448,111770.0,111760.0,0.15424]
[1756901984379,0.93108462,111770.0,111760.0,0.15424]
[1756901985175,1.34078448,111770.0,111760.0,0.15424]
[1756901985678,1.43398047,111770.0,111760.0,0.15424]
[1756901985885,1.45960315,111770.0,111760.0,0.15424]
[1756901986098,1.45762315,111770.0,111760.0,0.15952]
[1756901986312,1.04792329,111770.0,111760.0,0.15952]
[1756901986740,1.04990329,111770.0,111760.0,0.15952]
[1756901986975,1.04990329,111770.0,111760.0,0.15552]
[1756901987162,1.04990329,111770.0,111760.0,0.15652]
[1756901988213,1.04990329,111770.0,111760.0,0.15752]
[1756901988834,1.02300061,111770.0,111760.0,0.15752]
[1756901989397,1.43270047,111770.0,111760.0,0.15752]
[1756901989630,1.43270047,111770.0,111760.0,0.15541]
[1756901990667,1.43270047,111770.0,111760.0,0.15752]
[1756901990900,1.02300061,111770.0,111760.0,0.15752]
[1756901991329,1.02102061,111770.0,111760.0,0.15752]
[1756901991553,0.61132075,111770.0,111760.0,0.15752]
[1756901991769,1.02102061,111770.0,111760.0,0.15752]
[1756901993192,0.92910462,111770.0,111760.0,0.15752]
[1756901995563,1.34078448,111770.0,111760.0,0.15752]
[1756901995749,1.34078448,111770.0,111760.0,0.15541]
[1756901996288,1.34078448,111770.0,111760.0,0.15752]
[1756901997401,0.93108462,111770.0,111760.0,0.15752]
[1756901998591,0.93108462,111770.0,111760.0,0.15541]
[1756901999494,1.06729376,111770.0,111760.0,0.15541]
[1756902000132,1.06729376,111770.0,111760.0,0.15752]
[1756902000358,1.06729376,111770.0,111760.0,0.15541]
[1756902000770,0.52138476,111770.0,111760.0,0.15541]
[1756902000972,1.06729376,111770.0,111760.0,0.15752]
[1756902001179,1.06729376,111770.0,111760.0,0.1522]
[1756902001381,1.06729376,111770.0,111760.0,0.15537]
[1756902001790,0.34046587,111770.0,111760.0,0.3364349]
[1756902002002,0.00046587,111770.0,111760.0,0.3364349]
[1756902002979,0.00046587,111770.0,111760.0,0.97425989]
[1756902004006,0.00046587,111770.0,111760.0,1.00115502]
[1756902005150,0.00046587,111770.0,111760.0,0.45524602]
[1756902009841,0.00046587,111770.0,111760.0,1.00115502]
[1756902010294,0.00046587,111770.0,111760.0,0.45524602]
[1756902010438,0.00046587,111770.0,111760.0,1.00115502]
[1756902011886,0.00046587,111770.0,111760.0,0.45516602]
[1756902012812,0.00046587,111770.0,111760.0,1.00107502]
[1756902015981,0.00046587,111770.0,111760.0,0.45516602]
[1756902016203,0.00046587,111770.0,111760.0,1.00107502]
[1756902022624,0.00046587,111770.0,111760.0,0.47610484]
[1756902022845,0.00046587,111770.0,111760.0,1.36201384]
[1756902023067,0.00046587,111770.0,111760.0,1.90792284]
[1756902023284,0.00046587,111770.0,111760.0,0.81610484]
[1756902023506,0.00046587,111770.0,111760.0,1.76201384]
[1756902023741,0.00046587,111770.0,111760.0,1.76101384]
[1756902024401,0.00046587,111770.0,111760.0,1.21510484]
[1756902024620,0.00046587,111770.0,111760.0,1.76001384]
[1756902025145,0.00046587,111770.0,111760.0,1.77001384]
[1756902027676,0.00046587,111770.0,111760.0,2.03921384]
[1756902034873,0.00046587,111770.0,111760.0,1.88909384]
[1756902035169,0.00046587,111770.0,111760.0,2.04849384]
[1756902036805,0.00046587,111770.0,111760.0,1.88909384]
[1756902037055,0.00046587,111770.0,111760.0,2.04829384]
[1756902037278,0.00046587,111770.0,111760.0,2.26329384]
[1756902038133,0.00046587,111770.0,111760.0,1.71738484]
[1756902038371,0.00046587,111770.0,111760.0,2.10409384]
[1756902038548,0.00243587,111770.0,111760.0,2.26297384]
[1756902038852,0.00046587,111770.0,111760.0,2.26297384]
[1756902043971,0.00046587,111770.0,111760.0,2.10409384]
[1756902044203,0.00046587,111770.0,111760.0,2.26265384]
[1756902046972,0.00046587,111770.0,111760.0,2.10409384]
[1756902047187,0.00244587,111770.0,111760.0,2.18439268]
[1756902047391,0.00244587,111770.0,111760.0,1.39672368]
[1756902047691,0.00046587,111770.0,111760.0,1.94263268]
[1756902047939,0.00046587,111770.0,111760.0,1.86233384]
[1756902048288,0.00244587,111770.0,111760.0,1.03046486]
[1756902048516,0.00244587,111770.0,111760.0,0.95016602]
[1756902048724,0.00244587,111770.0,111760.0,1.49607502]
[1756902048928,0.00244587,111770.0,111760.0,1.50118502]
[1756902049100,0.00244587,111770.0,111760.0,1.49618502]
[1756902049337,0.00046587,111770.0,111760.0,1.49118502]
[1756902049546,0.00046587,111770.0,111760.0,1.49518502]
[1756902049754,0.00046587,111770.0,111760.0,1.49918502]
[1756902050163,0.00046587,111770.0,111760.0,1.49518502]
[1756902050865,0.00046587,111770.0,111760.0,1.49118502]
[1756902051195,0.00046587,111770.0,111760.0,1.49518502]
[1756902051395,0.00046587,111770.0,111760.0,1.22598502]
[1756902051926,0.00046587,111770.0,111760.0,1.22998502]
[1756902053334,0.00046587,111770.0,111760.0,0.68407602]
[1756902053541,0.00244587,111770.0,111760.0,1.22998502]
[1756902054019,0.00046587,111770.0,111760.0,1.22998502]
[1756902054646,0.00046587,111770.0,111760.0,0.68407602]
[1756902054840,0.00046587,111770.0,111760.0,1.22998502]
[1756902056800,0.00046587,111770.0,111760.0,1.07178502]
[1756902056990,0.00046587,111770.0,111760.0,1.22938502]
[1756902058859,0.00244587,111770.0,111760.0,1.22727502]
[1756902059350,0.00244587,111770.0,111760.0,1.22934502]
[1756902059589,0.00244587,111770.0,111760.0,1.09263693]
[1756902059819,0.00046587,111770.0,111760.0,1.09263693]
[1756902060034,0.00046587,111770.0,111760.0,1.50183784]
[1756902063473,0.00046587,111770.0,111760.0,0.68343602]
[1756902063755,0.00046587,111770.0,111760.0,0.52587602]
[1756902063932,0.00046587,111770.0,111760.0,1.50139784]
[1756902064149,0.00046587,111770.0,111760.0,1.09219693]
[1756902064724,0.00046587,111770.0,111760.0,1.50139784]
[1756902075708,0.00046587,111770.0,111760.0,1.57019784]
[1756902076093,0.00046587,111770.0,111760.0,1.41307784]
[1756902076307,0.00046587,111770.0,111760.0,1.56931784]
[1756902078876,0.00046587,111770.0,111760.0,0.75091602]
[1756902079082,0.00046587,111770.0,111760.0,1.59025666]
[1756902080439,0.00046587,111770.0,111760.0,1.37525666]
[1756902091052,0.00046587,111770.0,111760.0,0.55685484]
[1756902091266,0.00046587,111770.0,111760.0,1.37525666]
[1756902092017,0.00244587,111770.0,111760.0,0.80981575]
[1756902092242,0.41164678,111770.0,111760.0,0.37456602]
[1756902092443,0.41292678,111770.0,111760.0,0.34767089]
[1756902092689,0.00244587,111770.0,111760.0,0.50295089]
[1756902092863,0.41164678,111770.0,111760.0,0.50295089]
[1756902093270,0.00244587,111770.0,111760.0,0.49495089]
[1756902093467,0.00244587,111770.0,111760.0,0.49807089]
[1756902093825,0.00244587,111770.0,111760.0,0.9132718]
[1756902094316,0.00244587,111770.0,111760.0,0.9162718]
[1756902094850,0.00244587,111770.0,111760.0,0.9132718]
[1756902095157,0.00244587,111770.0,111760.0,0.50707089]
[1756902097821,0.00244587,111770.0,111760.0,0.50683089]
[1756902098781,0.18138476,111770.0,111760.0,0.2567549]
[1756902099004,0.59058567,111770.0,111760.0,0.4117949]
[1756902099219,0.00244587,111770.0,111760.0,0.4117949]
[1756902099379,0.41164678,111770.0,111760.0,0.4117949]
[1756902099577,0.00244587,111770.0,111760.0,0.4117949]
[1756902099790,0.00244587,111770.0,111760.0,0.4148849]
[1756902100693,0.00244587,111770.0,111760.0,0.4169549]
[1756902102891,0.00046587,111770.0,111760.0,0.82615581]
[1756902103095,0.00046587,111770.0,111760.0,0.4169549]
[1756902103274,0.00046587,111770.0,111760.0,0.82615581]
[1756902106561,0.00046587,111770.0,111760.0,0.9180718]
[1756902110136,0.00046587,111770.0,111760.0,0.50887089]
[1756902110340,0.00046587,111770.0,111760.0,0.9180718]
[1756902111240,0.00046587,111770.0,111760.0,0.50887089]
[1756902111470,0.00046587,111770.0,111760.0,0.9180718]
[1756902113901,0.00046587,111770.0,111760.0,0.94496594]
[1756902119737,0.00046587,111770.0,111760.0,0.53576503]
[1756902122573,0.00046587,111770.0,111760.0,1.10234076]
[1756902123910,0.00046587,111770.0,111760.0,1.1826396]
[1756902126526,0.00046587,111770.0,111760.0,1.10234076]
[1756902128475,0.00046587,111770.0,111760.0,0.40166385]
[1756902128682,0.00046587,111770.0,111760.0,1.10102076]
[1756902128890,0.00046587,111770.0,111760.0,1.64665767]
[1756902129107,0.00046587,111770.0,111760.0,1.72695651]
[1756902130248,0.00046587,111770.0,111760.0,2.12695651]
[1756902130873,0.00046587,111770.0,111760.0,2.46695651]
[1756902133489,0.00046587,111770.0,111760.0,1.9213196]
[1756902133721,0.00046587,111770.0,111760.0,2.46695651]
[1756902134754,0.00046587,111770.0,111760.0,2.31323651]
[1756902134964,0.00046587,111770.0,111760.0,1.9210396]
[1756902140249,0.00046587,111770.0,111760.0,2.1902396]
[1756902140479,0.00046587,111770.0,111760.0,2.73587651]
[1756902149231,0.00046587,111770.0,111760.0,1.64460269]
[1756902149458,0.00046587,111770.0,111760.0,2.1902396]
[1756902150345,0.00046587,111770.0,111760.0,2.0367996]
[1756902150577,0.00046587,111770.0,111760.0,2.1895996]
[1756902152255,0.00046587,111770.0,111760.0,2.0367996]
[1756902152672,0.00046587,111770.0,111760.0,2.1895596]
[1756902152673,0.00244587,111770.0,111760.0,2.1895596]
[1756902152919,0.00244587,111770.0,111760.0,1.64396269]
[1756902153120,0.00046587,111770.0,111760.0,1.64396269]
[1756902153535,0.00046587,111770.0,111760.0,1.56366385]
[1756902154641,0.00046587,111770.0,111760.0,2.10930076]
[1756902155064,0.00244587,111770.0,111760.0,1.6440823]
[1756902155881,0.00244587,111770.0,111760.0,0.7462023]
[1756902156114,0.54808278,111770.0,111760.0,0.64476503]
[1756902156368,0.54808278,111770.0,111760.0,0.79744503]
[1756902156584,0.00244587,111770.0,111760.0,0.79744503]
[1756902157423,0.00244587,111770.0,111760.0,0.64476503]
[1756902157659,0.00372587,111770.0,111760.0,0.79740503]
[1756902158079,0.54808278,111770.0,111760.0,0.52820503]
[1756902158291,0.54936278,111770.0,111760.0,0.52820503]
[1756902159480,0.00244587,111770.0,111760.0,0.52820503]
[1756902162399,0.00244587,111770.0,111760.0,0.53114503]
[1756902163963,0.00244587,111770.0,111760.0,0.52820503]
[1756902164359,0.00372587,111770.0,111760.0,0.52800503]
[1756902164535,0.00244587,111770.0,111760.0,0.52800503]
[1756902166179,0.00244587,111770.0,111760.0,0.53094503]
[1756902168416,0.00244587,111770.0,111760.0,0.53290503]
[1756902170066,0.00244587,111770.0,111760.0,0.53094503]
[1756902171834,0.54808278,111770.0,111760.0,0.37556503]
[1756902172040,0.54936278,111770.0,111760.0,0.2567549]
[1756902172244,0.54936278,111770.0,111760.0,0.4089149]
[1756902172458,0.54808278,111770.0,111760.0,0.4089149]
[1756902175113,0.54808278,111770.0,111760.0,0.2567549]
[1756902175351,0.54808278,111770.0,111760.0,0.4088349]
[1756902177574,0.54808278,111770.0,111760.0,0.4117749]
[1756902177795,0.00244587,111770.0,111760.0,0.4137349]
[1756902178053,0.54808278,111770.0,111760.0,0.4137349]
[1756902180157,0.00244587,111770.0,111760.0,0.4137349]
[1756902180369,0.54808278,111770.0,111760.0,0.4137349]
[1756902181316,0.54808278,111770.0,111760.0,0.4088349]
[1756902181546,0.41176654,111770.0,111760.0,0.4137349]
[1756902181760,0.41176654,111770.0,111760.0,0.4088349]
[1756902183738,0.41176654,111770.0,111760.0,0.2567549]
[1756902183874,0.41304654,111770.0,111760.0,0.2567549]
[1756902184086,0.82236721,111770.0,111760.0,0.4088349]
[1756902184316,0.84926473,111770.0,111760.0,0.4088349]
[1756902184884,0.85844357,111770.0,111760.0,0.4088349]
[1756902185593,0.4491229,111770.0,111760.0,0.4088349]
[1756902185817,0.02736339,111770.0,111760.0,0.4137349]
[1756902186036,0.40978654,111770.0,111760.0,0.4137349]
[1756902186921,0.00046587,111770.0,111760.0,0.4137349]
[1756902187130,0.40978654,111770.0,111760.0,0.4137349]
[1756902187457,0.00046587,111770.0,111760.0,0.4137349]
[1756902189197,0.41176654,111770.0,111760.0,0.2616549]
[1756902189402,0.41176654,111770.0,111760.0,0.4088349]
[1756902191768,0.00244587,111770.0,111760.0,0.4088349]
[1756902191998,0.41176654,111770.0,111760.0,0.4088349]
[1756902192535,0.41176654,111770.0,111760.0,0.2567549]
[1756902192756,0.59198543,111770.0,111760.0,0.2567549]
[1756902192996,0.59198543,111770.0,111760.0,0.4088349]
[1756902193224,0.61888447,111770.0,111760.0,0.4088349]
[1756902193447,0.2082838,111770.0,111760.0,0.4088349]
[1756902193637,0.61888447,111770.0,111760.0,0.4058349]
[1756902193840,0.61888447,111770.0,111760.0,0.4078349]
[1756902193990,0.61888447,111770.0,111760.0,0.4018349]
[1756902194438,0.61888447,111770.0,111760.0,0.4028349]
[1756902195140,0.61888447,111770.0,111760.0,0.4008349]
[1756902195448,0.61888447,111770.0,111760.0,0.4028349]
[1756902195683,0.61888447,111770.0,111760.0,0.2507549]
[1756902195889,0.61888447,111770.0,111760.0,0.4028349]
[1756902196103,0.61760447,111770.0,111760.0,0.4028349]
[1756902196311,0.61760447,111770.0,111760.0,0.2507549]
[1756902196522,0.61760447,111770.0,111760.0,0.4028349]
[1756902197489,0.61888447,111770.0,111760.0,0.4028349]
[1756902199283,0.61760447,111770.0,111760.0,0.4028349]
[1756902200459,0.2082838,111770.0,111760.0,0.4028349]
[1756902200644,0.61760447,111770.0,111760.0,0.2507549]
[1756902200899,0.61760447,111770.0,111760.0,0.4028349]
[1756902210945,0.61760447,111770.0,111760.0,0.4058749]
[1756902211570,0.61760447,111770.0,111760.0,0.4028349]
[1756902214155,0.61760447,111770.0,111760.0,0.2507549]
[1756902214362,0.61760447,111770.0,111760.0,0.4027949]
[1756902217080,0.61760447,111770.0,111760.0,0.2537949]
[1756902217288,0.61760447,111770.0,111760.0,0.4058349]
[1756902217472,0.61760447,111770.0,111760.0,0.4079549]
[1756902219749,0.61562447,111770.0,111760.0,0.4079549]
[1756902222287,0.61760447,111770.0,111760.0,0.4079549]
[1756902223610,0.59070543,111770.0,111760.0,0.4079549]
[1756902225345,0.58872543,111770.0,111760.0,0.4079549]
[1756902226371,0.17940476,111770.0,111760.0,0.4079549]
[1756902226621,0.58872543,111770.0,111760.0,0.4079549]
[1756902227694,0.59070543,111770.0,111760.0,0.4079549]
[1756902228653,0.59070543,111770.0,111760.0,0.2559149]
[1756902228864,0.59070543,111770.0,111760.0,0.4079149]
[1756902229283,0.18138476,111770.0,111760.0,0.4079149]
[1756902229480,0.59070543,111770.0,111760.0,0.4079149]
[1756902230214,0.17940476,111770.0,111760.0,0.4079149]
[1756902230628,0.58872543,111770.0,111760.0,0.4079149]
[1756902232735,0.58872543,111770.0,111760.0,0.2559149]
[1756902232941,0.58872543,111770.0,111760.0,0.4079149]
[1756902238510,0.00046587,111770.0,111760.0,0.4079149]
[1756902238686,0.40978654,111770.0,111760.0,0.4079149]
[1756902238929,0.17940476,111770.0,111760.0,0.4079149]
[1756902239142,0.58872543,111770.0,111760.0,0.4079149]
[1756902239528,0.00046587,111770.0,111760.0,0.4079149]
[1756902239734,0.00046587,111770.0,111760.0,0.81723557]
[1756902240500,0.40978654,111770.0,111760.0,0.4079149]
[1756902240715,0.58872543,111770.0,111760.0,0.2559149]
[1756902240923,0.58872543,111770.0,111760.0,0.4078749]
[1756902241595,0.00046587,111770.0,111760.0,0.4078749]
[1756902242494,0.17940476,111770.0,111760.0,0.4078749]
[1756902244539,0.17940476,111770.0,111760.0,0.2559149]
[1756902244761,0.72713214,111770.0,111760.0,0.22376]
[1756902244976,0.72713214,111770.0,111760.0,0.4027149]
[1756902245211,0.72713214,111770.0,111760.0,0.4077149]
[1756902245212,0.75403115,111770.0,111760.0,0.4077149]
[1756902247034,0.20828377,111770.0,111760.0,0.4077149]
[1756902249865,0.18138476,111770.0,111760.0,0.4077149]
[1756902250414,0.17940476,111770.0,111760.0,0.4077149]
[1756902251034,0.00046587,111770.0,111760.0,0.4077149]
[1756902251256,0.17940476,111770.0,111760.0,0.4077149]
[1756902269495,0.17940476,111770.0,111760.0,0.2557549]
[1756902269694,0.17940476,111770.0,111760.0,0.4075949]
[1756902271212,0.17940476,111770.0,111760.0,0.0768]
[1756902271439,0.17940476,111770.0,111760.0,0.2286]
[1756902271943,0.17940476,111770.0,111760.0,0.4075549]
[1756902272367,0.17940476,111770.0,111760.0,0.2286]
[1756902272525,0.18138476,111770.0,111760.0,0.0768]
[1756902272780,0.18138476,111770.0,111760.0,0.2286]
[1756902272976,0.18138476,111770.0,111760.0,0.4075549]
[1756902273218,0.18138476,111770.0,111760.0,0.2286]
[1756902273523,0.72713214,111770.0,111760.0,0.2286]
[1756902273968,0.18138476,111770.0,111760.0,0.2286]
[1756902274171,0.72713214,111770.0,111760.0,0.2286]
[1756902274746,0.72713214,111770.0,111760.0,0.4075549]
[1756902275143,0.18138476,111770.0,111760.0,0.4075549]
[1756902276317,0.18138476,111770.0,111760.0,0.2286]
[1756902276961,0.17940476,111770.0,111760.0,0.2286]
[1756902277460,0.17940476,111770.0,111760.0,0.4075549]
[1756902278362,0.17940476,111770.0,111760.0,0.2286]
[1756902278746,0.17940476,111770.0,111760.0,0.4075549]
[1756902279385,0.17940476,111770.0,111760.0,0.2286]
[1756902280231,0.17940476,111770.0,111760.0,0.4075549]
[1756902280835,0.17940476,111770.0,111760.0,0.2286]
[1756902283850,0.18138476,111770.0,111760.0,0.0768]
[1756902284076,1.15904813,111770.0,111760.0,0.0718]
[1756902284295,1.2177699,111770.0,111760.0,0.0718]
[1756902284482,1.2177699,111770.0,111760.0,0.22356]
[1756902284960,1.2177699,111770.0,111760.0,0.22256]
[1756902285393,0.67074252,111770.0,111760.0,0.22256]
[1756902285702,1.2164899,111770.0,111760.0,0.22256]
[1756902286138,1.2164899,111770.0,111760.0,0.22056]
[1756902286369,1.2164899,111770.0,111760.0,0.22156]
[1756902286813,1.2164899,111770.0,111760.0,0.22056]
[1756902287038,1.2174899,111770.0,111760.0,0.22056]
[1756902287260,1.2184899,111770.0,111760.0,0.22056]
[1756902287469,0.67274252,111770.0,111760.0,0.22056]
[1756902287695,1.2184899,111770.0,111760.0,0.22056]
[1756902287882,1.2184899,111770.0,111760.0,0.22052]
[1756902293804,1.2184899,111770.0,111760.0,0.22566]
[1756902294534,1.2184899,111770.0,111760.0,0.22367]